fUST/lending_fUST_20250127
["ID","MTS","AMOUNT","RATE_DAILY","PERIOD"]
[350510093,1737935449366,-1807.9,0.0001726,2]
[350510095,1737935449375,-1767.42243167,0.00017314,2]
[350510097,1737935449384,-150.0,0.00017391,2]
[350510098,1737935449393,-395.0,0.00017391,2]
[350510100,1737935449402,-2255.73,0.00017397,2]
[350510102,1737935449412,-500.0,0.00017397,2]
[350510104,1737935449421,-663.03,0.00017397,2]
[350510106,1737935449430,-500.0,0.00017397,2]
[350510108,1737935449439,-500.0,0.00017397,2]
[350510110,1737935449448,-500.0,0.00017397,2]
[350510112,1737935449458,-586.5,0.00017397,2]
[350510114,1737935449467,-500.0,0.00017397,2]
[350510116,1737935449476,-500.0,0.00017397,2]
[350510118,1737935449485,-1807.9,0.00017397,2]
[350510120,1737935449494,-9063.9,0.000174,2]
[350510122,1737935449503,-13186.8218844,0.00017481,2]
[350510124,1737935449512,-1767.42243167,0.00017521,2]
[350510126,1737935449520,-2255.73,0.00017534,2]
[350510128,1737935449530,-213.2,0.00017534,2]
[350510130,1737935449539,-663.03,0.00017534,2]
[350510132,1737935449548,-500.0,0.00017534,2]
[350510134,1737935449557,-351.7,0.00017534,2]
[350510136,1737935449567,-500.0,0.00017534,2]
[350510138,1737935449576,-586.5,0.00017534,2]
[350510141,1737935449585,-500.0,0.00017534,2]
[350510142,1737935449594,-298.4,0.00017534,2]
[350510145,1737935449603,-1807.9,0.00017534,2]
[350510147,1737935449612,-500.0,0.00017538,2]
[350510149,1737935449622,-362.90003856,0.00017542,2]
[350510151,1737935449631,-3059.94,0.000176,2]
[350510153,1737935449640,-13186.8218844,0.00017631,2]
[350510155,1737935449649,-22582.45374213,0.00017632,2]
[350510157,1737935449659,-317.135645,0.00017635,2]
[350510159,1737935449668,-317.135645,0.00017635,2]
[350510161,1737935449678,-1200.0,0.00017647,2]
[350510163,1737935449688,-2255.73,0.00017671,2]
[350510165,1737935449697,-663.03,0.00017671,2]
[350510167,1737935449706,-500.0,0.00017671,2]
[350510169,1737935449715,-500.0,0.00017671,2]
[350510171,1737935449725,-586.5,0.00017671,2]
[350510173,1737935449735,-500.0,0.00017671,2]
[350510175,1737935449744,-1807.9,0.00017671,2]
[350510177,1737935449753,-7458.15634357,0.000177,2]
[350510179,1737935449762,-1767.42243167,0.00017728,2]
[350510181,1737935449772,-151.0,0.00017728,2]
[350510182,1737935449781,-2000.0,0.000178,2]
[350510184,1737935449790,-2255.73,0.00017808,2]
[350510186,1737935449800,-663.03,0.00017808,2]
[350510188,1737935449809,-500.0,0.00017808,2]
[350510191,1737935449818,-319.92,0.00017808,2]
[350510192,1737935449828,-272.458812,0.00017808,2]
[350510195,1737935449838,-586.5,0.00017808,2]
[350510196,1737935449847,-500.0,0.00017808,2]
[350510198,1737935449856,-1807.9,0.00017808,2]
[350510201,1737935449866,-166.0,0.00017808,2]
[350510203,1737935449875,-410.0,0.000179,7]
[350510205,1737935449885,-1767.42243167,0.00017934,2]
[350510207,1737935449895,-500.0,0.0001794,2]
[350510209,1737935449904,-2255.73,0.00017945,2]
[350510210,1737935449915,-663.03,0.00017945,2]
[350510212,1737935449924,-154.6,0.00017945,2]
[350510215,1737935449934,-586.5,0.00017945,2]
[350510217,1737935449943,-500.0,0.00017945,2]
[350510218,1737935449951,-1807.9,0.00017945,2]
[350510220,1737935449961,-13186.8218844,0.00018069,2]
[350510222,1737935449970,-2255.73,0.00018082,2]
[350510225,1737935449980,-663.03,0.00018082,2]
[350510227,1737935449989,-586.5,0.00018082,2]
[350510229,1737935449998,-500.0,0.00018082,2]
[350510231,1737935450008,-1807.9,0.00018082,2]
[350510233,1737935450017,-1767.42243167,0.00018141,2]
[350510235,1737935450027,-587.0,0.00018199,2]
[350510237,1737935450036,-2255.73,0.00018219,2]
[350510239,1737935450045,-663.03,0.00018219,2]
[350510241,1737935450055,-586.5,0.00018219,2]
[350510243,1737935450063,-387.7,0.00018219,2]
[350510245,1737935450074,-1807.9,0.00018219,2]
[350510247,1737935450084,-13186.8218844,0.00018298,2]
[350510249,1737935450094,-15468.02,0.000183,2]
[350510251,1737935450103,-195.04,0.00018326,2]
[350510253,1737935450113,-153.0,0.00018328,2]
[350510255,1737935450123,-275.52,0.00018328,2]
[350510257,1737935450132,-1767.42243167,0.00018348,2]
[350510259,1737935450141,-160.0,0.00018351,3]
[350510261,1737935450151,-151.0,0.00018356,2]
[350510263,1737935450160,-1174.214131,0.00018356,2]
[350510265,1737935450169,-1174.214131,0.00018356,2]
[350510267,1737935450178,-2255.73,0.00018356,2]
[350510269,1737935450188,-663.03,0.00018356,2]
[350510271,1737935450198,-586.5,0.00018356,2]
[350510273,1737935450207,-1807.9,0.00018356,2]
[350510275,1737935450217,-317.826,0.00018422,2]
[350510277,1737935450227,-2255.73,0.00018493,2]
[350510279,1737935450235,-663.03,0.00018493,2]
[350510281,1737935450245,-586.5,0.00018493,2]
[350510283,1737935450254,-1807.9,0.00018493,2]
[350510284,1737935450264,-13186.8218844,0.00018508,2]
[350510285,1737935450274,-362.90003856,0.00018537,2]
[350510286,1737935450284,-1767.42243167,0.00018555,2]
[350510287,1737935450294,-160.0,0.00018577,4]
[350510288,1737935450304,-185.3,0.000186,2]
[350510289,1737935450314,-185.3,0.000186,2]
[350510290,1737935450324,-213.68969644,0.0001863,2]
[350510291,1737935450333,-2255.73,0.0001863,2]
[350510292,1737935450342,-663.03,0.0001863,2]
[350510293,1737935450352,-586.5,0.0001863,2]
[350510294,1737935450362,-1807.9,0.0001863,2]
[350510295,1737935450372,-13186.8218844,0.00018667,2]
[350510296,1737935450382,-9063.9,0.000187,2]
[350510297,1737935450392,-1767.42243167,0.00018762,2]
[350510299,1737935450402,-2255.73,0.00018767,2]
[350510301,1737935450412,-663.03,0.00018767,2]
[350510303,1737935450423,-317.135645,0.00018767,2]
[350510305,1737935450432,-317.135645,0.00018767,2]
[350510307,1737935450442,-586.5,0.00018767,2]
[350510309,1737935450452,-1807.9,0.00018767,2]
[350510311,1737935450461,-2000.0,0.000188,2]
[350510314,1737935450471,-151.0,0.000188,2]
[350510315,1737935450480,-160.0,0.00018803,5]
[350510317,1737935450490,-17538.04853024,0.000189,2]
[350510320,1737935450500,-2255.73,0.00018904,2]
[350510322,1737935450510,-663.03,0.00018904,2]
[350510324,1737935450521,-586.5,0.00018904,2]
[350510326,1737935450531,-1807.9,0.00018904,2]
[350510328,1737935450541,-151.0,0.0001894,2]
[350510330,1737935450551,-151.0,0.0001894,2]
[350510332,1737935450560,-13186.8218844,0.00018958,2]
[350510334,1737935450570,-1767.42243167,0.00018969,2]
[350510336,1737935450579,-249.436,0.0001898,2]
[350510338,1737935450589,-303.00000303,0.00019,2]
[350510340,1737935450598,-302.9394212,0.00019,2]
[350510342,1737935450608,-160.0,0.0001903,6]
[350510344,1737935450617,-2255.73,0.00019041,2]
[350510346,1737935450626,-663.03,0.00019041,2]
[350510348,1737935450636,-586.5,0.00019041,2]
[350510350,1737935450646,-1807.9,0.00019041,2]
[350510353,1737935450656,-353.5775999,0.00019041,2]
[350510355,1737935450667,-151.0,0.00019073,2]
[350510357,1737935450677,-1767.42243167,0.00019176,2]
[350510359,1737935450686,-512.33,0.00019178,7]
[350510361,1737935450696,-500.0,0.00019178,2]
[350510363,1737935450706,-500.0,0.00019178,2]
[350510365,1737935450715,-500.0,0.00019178,2]
[350510367,1737935450725,-500.0,0.00019178,2]
[350510369,1737935450735,-500.0,0.00019178,2]
[350510371,1737935450744,-500.0,0.00019178,2]
[350510373,1737935450754,-500.0,0.00019178,2]
[350510375,1737935450764,-500.0,0.00019178,2]
[350510377,1737935450774,-500.0,0.00019178,2]
[350510379,1737935450783,-500.0,0.00019178,2]
[350510381,1737935450794,-502.25569424,0.00019178,2]
[350510383,1737935450803,-2255.73,0.00019178,2]
[350510385,1737935450813,-663.03,0.00019178,2]
[350510387,1737935450823,-586.5,0.00019178,2]
[350510389,1737935450833,-1807.9,0.00019178,2]
[350510391,1737935450842,-365.026347,0.00019178,2]
[350510393,1737935450852,-153.0,0.00019178,2]
[350510395,1737935450861,-215.3965244,0.00019178,2]
[350510397,1737935450871,-154.2803338,0.00019178,2]
[350510399,1737935450881,-214.5432881,0.00019178,2]
[350510401,1737935450890,-153.0,0.00019178,2]
[350510403,1737935450899,-215.3965244,0.00019178,2]
[350510405,1737935450908,-154.2803338,0.00019178,2]
[350510407,1737935450919,-153.0,0.00019178,2]
[350510409,1737935450929,-153.0,0.00019178,2]
[350510411,1737935450939,-215.3965244,0.00019178,2]
[350510413,1737935450948,-154.2803338,0.00019178,2]
[350510415,1737935450957,-154.2803338,0.00019178,2]
[350510417,1737935450967,-153.0,0.00019178,2]
[350510419,1737935450976,-153.0,0.00019178,2]
[350510421,1737935450985,-153.0,0.00019178,2]
[350510423,1737935450995,-153.0,0.00019178,2]
[350510425,1737935451004,-153.0,0.00019178,2]
[350510427,1737935451013,-303.00000303,0.0001919,2]
[350510429,1737935451023,-302.9394212,0.0001919,2]
[350510432,1737935451032,-160.0,0.00019256,7]
[350510434,1737935451041,-500.0,0.0001926,2]
[350510436,1737935451051,-13186.8218844,0.00019308,2]
[350510438,1737935451060,-2255.73,0.00019315,2]
[350510440,1737935451069,-663.03,0.00019315,2]
[350510442,1737935451079,-586.5,0.00019315,2]
[350510444,1737935451090,-1807.9,0.00019315,2]
[350510446,1737935451099,-183.383294,0.00019354,2]
[350510448,1737935451110,-1174.214131,0.00019354,2]
[350510450,1737935451119,-1174.214131,0.00019354,2]
[350510452,1737935451129,-303.00000303,0.0001938,2]
[350510454,1737935451138,-302.9394212,0.0001938,2]
[350510456,1737935451148,-1767.42243167,0.00019383,2]
[350510458,1737935451157,-410.0,0.000194,8]
[350510460,1737935451168,-2255.73,0.00019452,2]
[350510462,1737935451177,-663.03,0.00019452,2]
[350510464,1737935451187,-586.5,0.00019452,2]
[350510466,1737935451196,-1807.9,0.00019452,2]
[350510468,1737935451206,-160.0,0.00019482,8]
[350510470,1737935451215,-362.90003856,0.00019532,2]
[350510472,1737935451224,-303.00000303,0.0001957,2]
[350510475,1737935451234,-302.9394212,0.0001957,2]
[350510477,1737935451243,-2255.85580756,0.00019589,2]
[350510479,1737935451253,-663.21,0.00019589,2]
[350510481,1737935451262,-586.65,0.00019589,2]
[350510483,1737935451272,-1807.94046975,0.00019589,2]
[350510485,1737935451282,-1767.42243167,0.0001959,2]
[350510487,1737935451294,-15468.02,0.000196,2]
[350510489,1737935451303,-317.135645,0.000196,2]
[350510491,1737935451312,-317.135645,0.000196,2]
[350510493,1737935451322,-13186.8218849,0.00019652,2]
[350510495,1737935451333,-160.0,0.00019709,9]
[350510497,1737935451342,-303.00000303,0.0001976,2]
[350510499,1737935451352,-302.9394212,0.0001976,2]
[350510501,1737935451362,-1767.42243167,0.00019797,2]
[350510503,1737935451373,-153.0,0.00019823,2]
[350510505,1737935451383,-153.0,0.00019823,2]
[350510507,1737935451392,-153.0,0.00019823,2]
[350510509,1737935451402,-1997.982732,0.0001984,5]
[350510511,1737935451411,-153.0,0.00019843,2]
[350510513,1737935451421,-1000.0,0.0001986,5]
[350510515,1737935451430,-512.33,0.00019863,9]
[350510517,1737935451440,-1000.0,0.0001988,5]
[350510519,1737935451450,-6505.51142139,0.00019898,2]
[350510521,1737935451460,-1000.0,0.000199,5]
[350510523,1737935451469,-159.18980918,0.000199,2]
[350510525,1737935451479,-823.0,0.00019914,2]
[350510527,1737935451488,-1000.0,0.0001992,5]
[350510529,1737935451497,-160.0,0.00019935,10]
[350510531,1737935451506,-315.41338732,0.00019935,5]
[350510533,1737935451516,-1000.0,0.0001994,5]
[350510535,1737935451525,-454.50000455,0.0001995,4]
[350510537,1737935451534,-454.40913181,0.0001995,4]
[350510539,1737935451543,-1000.0,0.0001996,5]
[350510541,1737935451552,-273.07021413,0.00019973,2]
[350510543,1737935451562,-380.92453165,0.00019973,2]
[350510545,1737935451571,-500.0,0.00019973,2]
[350510547,1737935451580,-500.0,0.00019973,2]
[350510549,1737935451590,-500.0,0.00019973,2]
[350510552,1737935451599,-500.0,0.00019973,2]
[350510554,1737935451608,-500.0,0.00019973,2]
[350510556,1737935451617,-500.0,0.00019973,2]
[350510558,1737935451627,-500.0,0.00019973,2]
[350510560,1737935451636,-500.0,0.00019973,2]
[350510562,1737935451645,-500.0,0.00019973,2]
[350510564,1737935451655,-500.0,0.00019973,2]
[350510566,1737935451664,-500.0,0.00019973,2]
[350510568,1737935451673,-330.01861325,0.00019973,2]
[350510570,1737935451682,-498.21080704,0.00019973,2]
[350510572,1737935451692,-228.78758892,0.00019973,2]
[350510574,1737935451701,-294.20679,0.00019973,2]
[350510576,1737935451710,-151.0,0.00019979,2]
[350510578,1737935451719,-3554.93916649,0.0001998,2]
[350510580,1737935451728,-151.0,0.0001998,2]
[350510582,1737935451738,-1000.0,0.0001998,5]
[350510584,1737935451748,-500.0,0.0001998,7]
[350510586,1737935451757,-462.54921539,0.0001998,7]
[350510588,1737935451767,-153.0,0.0001999,2]
[350510589,1737935451776,-153.0,0.0001999,2]
[350510591,1737935451785,-153.0,0.0001999,2]
[350510593,1737935451794,-153.0,0.0001999,2]
[350510595,1737935451804,-153.0,0.0001999,2]
[350510596,1737935451813,-153.0,0.0001999,2]
[350510598,1737935451823,-153.0,0.0001999,2]
[350510600,1737935451832,-153.0,0.0001999,2]
[350510601,1737935451847,-151.0,0.00019996,2]
[350510603,1737935451856,-1174.214131,0.00019996,2]
[350510605,1737935451866,-1174.214131,0.00019996,2]
[350510607,1737935451875,-200.309777,0.00019996,2]
[350510608,1737935451884,-151.0,0.00019996,2]
[350510610,1737935451894,-317.135645,0.00019996,2]
[350510612,1737935451903,-317.135645,0.00019996,2]
[350510614,1737935451914,-107410.59290613,0.00019996,7]
[350511119,1737935936236,164.808052,0.00013973,2]
[350511121,1737936076937,37619.36934345,0.00015101,2]
[350511125,1737936313124,162.63320346,0.00015,2]
[350511129,1737936453157,-300.0,0.00015179,2]
[350511130,1737936453183,-240.3224408,0.00015644,2]
[350511542,1737936638731,-300.0,0.00015643,2]
[350511544,1737936638742,-24659.6775592,0.00015644,2]
[350511546,1737936638753,-190.38062323,0.00016438,2]
[350511548,1737936638763,-504.1844452,0.00016438,2]
[350511550,1737936638773,-471.86836813,0.00016438,2]
[350511552,1737936638783,-276.33,0.00016438,2]
[350511553,1737936638793,-419.09,0.00016438,2]
[350511556,1737936638802,-500.0,0.00016438,2]
[350511558,1737936638813,-407.55,0.00016438,2]
[350511560,1737936638823,-422.22,0.00016438,2]
[350511562,1737936638833,-272.48,0.00016438,2]
[350511563,1737936638843,-500.0,0.00016438,2]
[350511566,1737936638854,-178.31,0.00016438,2]
[350511568,1737936638864,-500.0,0.00016438,2]
[350511570,1737936638874,-424.8833044,0.00016438,2]
[350511572,1737936638883,-208.96,0.00016438,2]
[350511574,1737936638894,-500.0,0.00016438,2]
[350511575,1737936638904,-251.7,0.00016438,2]
[350511577,1737936638913,-518.73744126,0.00016438,2]
[350511579,1737936638923,-219.42,0.00016438,2]
[350511581,1737936638933,-392.42,0.00016438,2]
[350511584,1737936638943,-196.56,0.00016438,2]
[350511585,1737936638953,-500.0,0.00016438,2]
[350511588,1737936638963,-500.0,0.00016438,2]
[350511590,1737936638973,-500.0,0.00016438,2]
[350511591,1737936638983,-500.0,0.00016438,2]
[350511595,1737936638994,-631.98,0.00016438,2]
[350511598,1737936639004,-500.0,0.00016438,2]
[350511601,1737936639014,-278.71,0.00016438,2]
[350511604,1737936639024,-512.71,0.00016438,2]
[350511607,1737936639034,-500.0,0.00016438,2]
[350511610,1737936639044,-340.19792056,0.00016438,2]
[350511613,1737936639054,-500.0,0.00016438,2]
[350511615,1737936639064,-500.0,0.00016438,2]
[350511618,1737936639074,-486.61859352,0.00016438,2]
[350511620,1737936639083,-214.64815077,0.00016438,2]
[350511622,1737936639093,-405.98719218,0.00016438,2]
[350511624,1737936639103,-500.0,0.00016438,2]
[350511625,1737936639114,-342.69,0.00016438,2]
[350511628,1737936639124,-500.0,0.00016438,2]
[350511630,1737936639134,-208.62802591,0.00016438,2]
[350511632,1737936639146,-500.0,0.00016438,2]
[350511633,1737936639155,-500.0,0.00016438,2]
[350511635,1737936639165,-500.0,0.00016438,2]
[350511638,1737936639174,-500.0,0.00016438,2]
[350511639,1737936639185,-500.0,0.00016438,2]
[350511642,1737936639195,-500.0,0.00016438,2]
[350511644,1737936639205,-500.0,0.00016438,2]
[350511646,1737936639214,-500.0,0.00016438,2]
[350511648,1737936639224,-500.0,0.00016438,2]
[350511651,1737936639234,-500.0,0.00016438,2]
[350511654,1737936639245,-500.0,0.00016438,2]
[350511656,1737936639256,-500.0,0.00016438,2]
[350511658,1737936639265,-500.0,0.00016438,2]
[350511660,1737936639275,-500.0,0.00016438,2]
[350511662,1737936639285,-500.0,0.00016438,2]
[350511666,1737936639295,-500.0,0.00016438,2]
[350511667,1737936639304,-500.0,0.00016438,2]
[350511669,1737936639313,-1728.91,0.00016438,2]
[350511671,1737936639322,-500.0,0.00016438,2]
[350511673,1737936639332,-616.56569802,0.00016438,2]
[350511675,1737936639342,-30495.5435196,0.00016438,2]
[350511677,1737936639351,-500.0,0.00016575,2]
[350511680,1737936639361,-575.5,0.00016575,2]
[350511682,1737936639371,-500.0,0.00016575,2]
[350511684,1737936639381,-500.0,0.00016575,2]
[350511685,1737936639392,-538.79532133,0.00016575,2]
[350511687,1737936639402,-500.0,0.00016575,2]
[350511689,1737936639412,-500.0,0.00016575,2]
[350511692,1737936639422,-548.16,0.00016575,2]
[350511695,1737936639431,-500.0,0.00016575,2]
[350511697,1737936639442,-1728.91,0.00016575,2]
[350511701,1737936639452,-597.75,0.00016712,2]
[350511704,1737936639461,-500.0,0.00016712,2]
[350511706,1737936639471,-505.89,0.00016712,2]
[350511708,1737936639480,-500.0,0.00016712,2]
[350511710,1737936639490,-500.0,0.00016712,2]
[350511712,1737936639500,-500.0,0.00016712,2]
[350511714,1737936639509,-1728.91,0.00016712,2]
[350511716,1737936639519,-611.42,0.00016849,2]
[350511718,1737936639528,-500.0,0.00016849,2]
[350511720,1737936639537,-500.0,0.00016849,2]
[350511722,1737936639547,-500.0,0.00016849,2]
[350511724,1737936639557,-1728.91,0.00016849,2]
[350511726,1737936639567,-500.0,0.00016986,2]
[350511728,1737936639576,-231.2,0.00016986,2]
[350511730,1737936639585,-500.0,0.00016986,2]
[350511732,1737936639594,-1728.91,0.00016986,2]
[350511734,1737936639604,-500.0,0.00017068,2]
[350511736,1737936639614,-554.51292135,0.00017068,2]
[350511738,1737936639625,-420.0,0.00017109,2]
[350511740,1737936639635,-500.0,0.00017123,2]
[350511741,1737936639645,-500.0,0.00017123,2]
[350511743,1737936639654,-1728.91,0.00017123,2]
[350511746,1737936639663,-150.0,0.000172,2]
[350511748,1737936639674,-500.0,0.0001726,2]
[350511750,1737936639683,-500.0,0.0001726,2]
[350511752,1737936639696,-1728.91,0.0001726,2]
[350511754,1737936639705,-150.0,0.00017393,2]
[350511756,1737936639715,-500.0,0.00017397,2]
[350511758,1737936639724,-289.18006593,0.00017397,2]
[350511760,1737936639733,-1728.91,0.00017397,2]
[350511762,1737936639743,-322.20012105,0.00017533,2]
[350511764,1737936639752,-584.44715085,0.00017533,2]
[350511766,1737936639762,-500.0,0.00017534,2]
[350511768,1737936639772,-1728.91,0.00017534,2]
[350511770,1737936639782,-1200.0,0.00017648,2]
[350511772,1737936639791,-500.0,0.00017671,2]
[350511774,1737936639801,-1728.91,0.00017671,2]
[350511776,1737936639810,-11564.66706767,0.00017691,2]
[350511778,1737936639819,-7458.15634357,0.000177,2]
[350511780,1737936639828,-2753.94,0.000178,2]
[350511782,1737936639837,-836.0,0.000178,2]
[350511784,1737936639847,-500.0,0.00017808,2]
[350511786,1737936639857,-1728.91,0.00017808,2]
[350511788,1737936639867,-166.0,0.00017808,2]
[350511790,1737936639875,-883.71121598,0.000179,2]
[350511792,1737936639884,-369.0,0.000179,7]
[350511794,1737936639895,-500.0,0.0001794,2]
[350511796,1737936639905,-500.0,0.0001794,2]
[350511798,1737936639914,-500.0,0.00017945,2]
[350511800,1737936639923,-1728.91,0.00017945,2]
[350511802,1737936639933,-10288.06,0.00018,2]
[350511804,1737936639943,-883.71121583,0.00018072,2]
[350511806,1737936639952,-500.0,0.00018082,2]
[350511808,1737936639961,-1728.91,0.00018082,2]
[350511810,1737936639971,-500.0,0.00018219,2]
[350511812,1737936639981,-1728.91,0.00018219,2]
[350511814,1737936639990,-883.71121583,0.00018245,2]
[350511816,1737936639999,-500.0,0.00018356,2]
[350511819,1737936640009,-1728.91,0.00018356,2]
[350511821,1737936640019,-883.71121583,0.00018417,2]
[350511823,1737936640028,-559.91999999,0.00018493,2]
[350511825,1737936640038,-1728.91,0.00018493,2]
[350511827,1737936640048,-254.261,0.0001852,2]
[350511829,1737936640058,-883.71121583,0.0001859,2]
[350511831,1737936640075,-1728.91,0.0001863,2]
[350511833,1737936640085,-587.0,0.00018712,2]
[350511835,1737936640094,-883.71121583,0.00018762,2]
[350511837,1737936640105,-1728.91,0.00018767,2]
[350511839,1737936640113,-11692.03235349,0.000189,2]
[350511841,1737936640123,-1728.91,0.00018904,2]
[350511843,1737936640132,-883.71121583,0.00018934,2]
[350511845,1737936640143,-500.0,0.00018999,2]
[350511847,1737936640153,-222.57552354,0.00018999,2]
[350511849,1737936640162,-30000.0,0.00019,2]
[350511851,1737936640172,-30000.0,0.00019,2]
[350511853,1737936640181,-30000.0,0.00019,2]
[350511855,1737936640191,-30000.0,0.00019,2]
[350511857,1737936640200,-30000.0,0.00019,2]
[350511859,1737936640209,-30000.0,0.00019,2]
[350511861,1737936640218,-30000.0,0.00019,2]
[350511863,1737936640229,-15553.32968034,0.00019,2]
[350511865,1737936640238,-302.90913937,0.00019,2]
[350511867,1737936640249,-302.9394212,0.00019,2]
[350511869,1737936640258,-1728.91,0.00019041,2]
[350511871,1737936640268,-251.97967987,0.00019074,2]
[350511873,1737936640277,-883.71121583,0.00019107,2]
[350511875,1737936640287,-500.0,0.00019178,7]
[350511877,1737936640296,-611.3617438,0.00019178,2]
[350511879,1737936640306,-1728.91,0.00019178,2]
[350511881,1737936640315,-302.90913937,0.0001919,2]
[350511883,1737936640324,-302.9394212,0.0001919,2]
[350511885,1737936640333,-500.0,0.0001926,2]
[350511887,1737936640343,-883.71121583,0.00019279,2]
[350511889,1737936640352,-1728.91,0.00019315,2]
[350511891,1737936640362,-302.90913937,0.0001938,2]
[350511893,1737936640371,-302.9394212,0.0001938,2]
[350511895,1737936640380,-369.0,0.000194,8]
[350511897,1737936640389,-883.71121583,0.00019452,2]
[350511899,1737936640400,-1728.91,0.00019452,2]
[350511901,1737936640409,-302.90913937,0.0001957,2]
[350511903,1737936640418,-302.9394212,0.0001957,2]
[350511905,1737936640428,-1728.91764716,0.00019589,2]
[350511907,1737936640437,-883.71121583,0.00019624,2]
[350511909,1737936640446,-153.0,0.00019693,2]
[350511911,1737936640458,-153.0,0.00019693,2]
[350511913,1737936640468,-153.0,0.00019693,2]
[350511915,1737936640477,-153.0,0.00019693,2]
[350511917,1737936640487,-153.0,0.00019693,2]
[350511919,1737936640496,-153.0,0.00019693,2]
[350511921,1737936640506,-252.0,0.00019693,2]
[350511923,1737936640515,-302.90913937,0.0001976,2]
[350511925,1737936640524,-302.9394212,0.0001976,2]
[350511927,1737936640534,-883.71121583,0.00019797,2]
[350511929,1737936640543,-500.0,0.00019863,9]
[350511931,1737936640552,-5854.96027926,0.000199,2]
[350511933,1737936640561,-454.36370906,0.0001995,4]
[350511935,1737936640571,-454.40913181,0.0001995,4]
[350511937,1737936640580,-883.71121583,0.00019969,2]
[350511939,1737936640589,-500.0,0.00019973,2]
[350511941,1737936640598,-500.0,0.00019973,2]
[350511943,1737936640607,-500.0,0.00019973,2]
[350511945,1737936640616,-500.0,0.00019973,2]
[350511947,1737936640625,-521.07295567,0.00019973,2]
[350511949,1737936640634,-500.0,0.00019973,2]
[350511951,1737936640643,-500.0,0.00019973,2]
[350511953,1737936640652,-569.33669601,0.00019973,2]
[350511955,1737936640661,-500.0,0.00019973,2]
[350511957,1737936640672,-500.0,0.00019973,2]
[350511959,1737936640685,-500.0,0.00019973,2]
[350511961,1737936640695,-261455.44238647,0.00019996,7]
[350511963,1737936640705,-7106.47861628,0.0002,5]
[350511965,1737936640716,-1725.70334498,0.0002,5]
[350511967,1737936640725,-160.0,0.0002,2]
[350511969,1737936640735,-26719.14745779,0.0002,2]
[350511971,1737936640745,-5191.95498924,0.0002,2]
[350511973,1737936640758,-70000.0,0.0002,2]
[350511975,1737936640768,-500.0,0.0002,2]
[350511977,1737936640778,-500.0,0.0002,3]
[350511979,1737936640788,-500.0,0.0002,3]
[350511981,1737936640797,-500.0,0.0002,2]
[350511983,1737936640807,-7003.93616817,0.0002,7]
[350511985,1737936640816,-145259.3326248,0.0002,2]
[350511987,1737936640825,-850.9591411,0.0002,3]
[350511989,1737936640836,-798.69,0.0002,4]
[350511991,1737936640847,-363.0,0.0002,3]
[350511993,1737936640857,-362.0,0.0002,3]
[350511995,1737936640866,-362.0,0.0002,3]
[350511997,1737936640876,-362.0,0.0002,3]
[350511999,1737936640886,-354.0,0.0002,3]
[350512001,1737936640897,-353.0,0.0002,3]
[350512003,1737936640907,-2048.0,0.0002,3]
[350512005,1737936640916,-2046.0,0.0002,3]
[350512007,1737936640926,-2046.0,0.0002,3]
[350512009,1737936640937,-2046.0,0.0002,3]
[350512011,1737936640947,-4289.0,0.0002,3]